bitfinex-derivatives/quotes_BTCF0:USTF0_20210404
["timestamp","ask_amount","ask_price","bid_price","bid_amount"]
[1617523576874,1.0,57549.0,57548.0,0.37725655]
[1617523577070,0.10725655,57550.0,57548.0,0.37725655]
[1617523577270,1.0,57549.0,57548.0,0.37725655]
[1617523578374,3.8413,57549.0,57548.0,0.37725655]
[1617523578974,3.8413,57549.0,57548.0,0.27]
[1617523579175,2.8413,57549.0,57548.0,0.27]
[1617523579377,3.8413,57549.0,57517.0,0.27]
[1617523579574,3.94512,57549.0,57527.0,0.01]
[1617523579777,3.94512,57549.0,57548.0,0.27]
[1617523579975,3.94512,57549.0,57518.0,0.0526]
[1617523579976,2.94512,57549.0,57518.0,0.0526]
[1617523580174,3.94512,57549.0,57528.0,0.01]
[1617523580375,3.94512,57549.0,57519.0,0.27]
[1617523580577,3.94512,57549.0,57518.0,0.0526]
[1617523580578,0.10725655,57534.0,57518.0,0.0526]
[1617523580779,0.10725655,57534.0,57529.0,0.27]
[1617523580978,0.10725655,57534.0,57519.0,0.27]
[1617523581179,0.10725655,57534.0,57518.0,0.0526]
[1617523581379,0.10725655,57534.0,57530.0,0.27]
[1617523581582,0.10725655,57534.0,57519.0,0.27]
[1617523581779,0.10725655,57534.0,57516.0,2.8777]
[1617523581981,0.10725655,57534.0,57531.0,0.27]
[1617523582179,0.10725655,57534.0,57519.0,0.27]
[1617523582379,0.10725655,57534.0,57517.0,0.01]
[1617523582579,0.10725655,57534.0,57533.0,0.10725655]
[1617523583181,0.10725655,57534.0,57533.0,0.37725655]
[1617523583900,0.4532,57559.0,57533.0,0.37725655]
[1617523583901,1.0,57542.0,57533.0,0.37725655]
[1617523584092,0.4532,57559.0,57539.0,2.9766]
[1617523584093,1.0,57545.0,57539.0,2.9766]
[1617523584485,1.0,57545.0,57544.0,0.10725655]
[1617523584689,1.0,57547.0,57544.0,0.10725655]
[1617523584892,1.0,57549.0,57544.0,0.37725655]
[1617523586489,0.10725655,57546.0,57544.0,0.37725655]
[1617523586690,0.10725655,57546.0,57545.0,3.3851]
[1617523587092,0.10725655,57546.0,57545.0,3.76799]
[1617523588191,1.0,57556.0,57545.0,3.76799]
[1617523588590,1.0,57556.0,57555.0,0.10725655]
[1617523588992,1.0,57556.0,57555.0,0.37725655]
[1617523589392,1.0,57558.0,57555.0,0.37725655]
[1617523589594,1.56045655,57559.0,57555.0,0.37725655]
[1617523589996,1.0,57557.0,57555.0,0.37725655]
[1617523591696,1.0,57556.0,57555.0,0.37725655]
[1617523593798,1.0,57557.0,57555.0,0.37725655]
[1617523595301,0.56045655,57559.0,57555.0,0.37725655]
[1617523595503,1.0,57556.0,57555.0,0.37725655]
[1617523595700,1.10911,57556.0,57555.0,0.37725655]
[1617523599103,1.16101,57556.0,57555.0,0.37725655]
[1617523599304,1.16101,57556.0,57555.0,0.27]
[1617523599503,1.10911,57556.0,57555.0,0.27]
[1617523599704,1.10911,57556.0,57546.0,0.27]
[1617523600103,1.10911,57556.0,57555.0,0.27]
[1617523600303,1.10911,57556.0,57520.0,0.052]
[1617523600304,0.10911,57556.0,57547.0,0.27]
[1617523600504,3.4219,57548.0,57547.0,0.27]
[1617523600705,3.52915655,57548.0,57539.0,0.10725655]
[1617523600905,4.67667655,57548.0,57539.0,0.10725655]
[1617523601105,4.67667655,57548.0,57540.0,0.27]
[1617523601706,1.0,57541.0,57540.0,0.27]
[1617523602306,1.0,57541.0,57540.0,3.3063]
[1617523602705,1.10725655,57541.0,57540.0,3.3063]
[1617523603505,0.10725655,57541.0,57540.0,3.3063]
[1617523603706,1.10725655,57541.0,57540.0,3.3063]
[1617523611512,0.10725655,57541.0,57540.0,3.3063]
[1617523611713,1.10725655,57541.0,57540.0,3.3063]
[1617523613315,1.10725655,57541.0,57540.0,0.27]
[1617523613515,3.93585655,57541.0,57540.0,0.27]
[1617523613717,3.93585655,57541.0,57533.0,0.27]
[1617523613918,1.42366386,57541.0,57533.0,0.27]
[1617523614117,1.42366386,57541.0,57515.0,0.01]
[1617523614118,1.42366386,57541.0,57540.0,0.2014]
[1617523614318,1.42366386,57541.0,57534.0,0.27]
[1617523614319,0.10725655,57541.0,57534.0,0.27]
[1617523614519,0.2,57540.0,57508.0,0.08]
[1617523614718,0.2,57540.0,57515.0,0.2]
[1617523614719,2.06903852,57539.0,57515.0,0.2]
[1617523614918,0.2,57538.0,57515.0,0.2]
[1617523615120,2.6228,57530.0,57509.0,0.08]
[1617523615318,2.76369,57530.0,57516.0,0.2]
[1617523615518,2.76369,57530.0,57507.0,0.27]
[1617523615718,1.11248,57514.0,57510.0,0.08]
[1617523615919,0.11248,57514.0,57510.0,0.08]
[1617523616119,0.11248,57514.0,57508.0,0.27]
[1617523616319,0.11248,57514.0,57511.0,0.08]
[1617523616719,0.11248,57514.0,57513.0,0.10725655]
[1617523617321,0.11248,57514.0,57513.0,0.37725655]
[1617523617921,0.11248,57514.0,57513.0,3.28305655]
[1617523618823,0.21973655,57514.0,57513.0,3.28305655]
[1617523619622,0.21973655,57514.0,57513.0,3.33585655]
[1617523619823,0.11248,57514.0,57513.0,3.28305655]
[1617523620625,1.0,57523.0,57513.0,3.28305655]
[1617523620826,1.0,57524.0,57521.0,0.10725655]
[1617523621026,1.0,57523.0,57521.0,0.10725655]
[1617523621227,1.0,57523.0,57522.0,0.27]
[1617523621627,4.5763,57523.0,57522.0,0.27]
[1617523621827,3.5763,57523.0,57522.0,0.27]
[1617523622830,4.68355655,57523.0,57522.0,0.27]
[1617523625528,3.68355655,57523.0,57522.0,0.27]
[1617523625729,4.68355655,57523.0,57522.0,0.27]
[1617523625930,4.68355655,57523.0,57495.0,0.27]
[1617523626329,4.68355655,57523.0,57522.0,0.27]
[1617523626529,4.68355655,57523.0,57496.0,0.27]
[1617523626929,1.0,57515.0,57507.0,0.10725655]
[1617523627130,1.16229,57515.0,57507.0,0.10725655]
[1617523627330,1.0,57512.0,57508.0,0.01]
[1617523628935,0.10725655,57509.0,57508.0,0.01]
[1617523630138,1.10725655,57509.0,57508.0,0.01]
[1617523631738,0.10725655,57509.0,57508.0,0.01]
[1617523634140,1.10725655,57509.0,57508.0,0.01]
[1617523634342,6.35825655,57509.0,57508.0,0.01]
[1617523634540,6.35825655,57509.0,57488.0,0.27]
[1617523634740,2.60725655,57509.0,57461.0,0.70525163]
[1617523634940,2.8995,57489.0,57485.0,0.01]
[1617523635139,2.8995,57489.0,57481.0,0.27]
[1617523635339,2.8995,57489.0,57462.0,0.01]
[1617523635740,2.8995,57489.0,57460.0,0.27]
[1617523635940,2.8995,57489.0,57459.0,0.01]
[1617523636141,1.0,57483.0,57459.0,0.01]
[1617523636340,1.0,57481.0,57461.0,0.27]
[1617523636541,3.1667,57467.0,57457.0,0.27]
[1617523636740,3.1667,57467.0,57455.0,0.01]
[1617523636741,3.31042,57467.0,57455.0,0.01]
[1617523636940,3.31042,57467.0,57466.0,0.10725655]
[1617523637540,3.31042,57467.0,57466.0,0.37725655]
[1617523638841,3.41767655,57467.0,57466.0,0.37725655]
[1617523639741,0.25097655,57467.0,57466.0,0.37725655]
[1617523640141,0.10725655,57467.0,57466.0,0.37725655]
[1617523640342,3.4858,57482.0,57466.0,0.37725655]
[1617523640941,3.4858,57482.0,57481.0,0.10725655]
[1617523641341,3.4858,57482.0,57481.0,0.37725655]
[1617523641942,4.4858,57482.0,57481.0,0.37725655]
[1617523642141,1.052,57482.0,57481.0,0.37725655]
[1617523642342,1.0522,57499.0,57481.0,3.17495655]
[1617523642942,1.0522,57499.0,57493.0,0.10725655]
[1617523643159,1.0,57499.0,57493.0,0.10725655]
[1617523643350,1.0,57499.0,57493.0,0.37725655]
[1617523644347,0.53930807,57514.0,57493.0,0.37725655]
[1617523644348,1.0,57500.0,57493.0,0.37725655]
[1617523644955,0.60225655,57494.0,57493.0,0.37725655]
[1617523645166,0.60225655,57494.0,57493.0,0.54330655]
[1617523645347,0.495,57494.0,57493.0,0.54330655]
[1617523652559,0.495,57494.0,57493.0,0.37725655]
[1617523653561,0.495,57494.0,57493.0,0.48834655]
[1617523656264,0.495,57494.0,57493.0,0.37725655]
[1617523663176,0.60225655,57494.0,57493.0,0.37725655]
[1617523666484,0.72184655,57494.0,57493.0,0.37725655]
[1617523672596,0.495,57494.0,57493.0,0.37725655]
[1617523673615,0.495,57494.0,57493.0,0.42975655]
[1617523673831,0.495,57494.0,57493.0,3.94655655]
[1617523674403,2.7276,57517.0,57493.0,3.94655655]
[1617523675204,2.7276,57517.0,57516.0,0.22522655]
[1617523675598,2.7276,57517.0,57516.0,0.49522655]
[1617523675999,3.7276,57517.0,57516.0,0.38797]
[1617523676198,3.7276,57517.0,57516.0,0.27]
[1617523676600,3.7276,57517.0,57494.0,0.27]
[1617523677000,3.7276,57517.0,57516.0,0.27]
[1617523677199,2.83485655,57517.0,57509.0,0.10725655]
[1617523677600,3.83485655,57517.0,57516.0,0.27]
[1617523677801,3.83485655,57517.0,57510.0,0.01]
[1617523678001,3.83485655,57517.0,57509.0,0.10725655]
[1617523678201,3.83485655,57517.0,57516.0,0.27]
[1617523678401,3.83485655,57517.0,57510.0,0.27]
[1617523679202,0.10725655,57511.0,57510.0,0.27]
[1617523679603,1.10725655,57511.0,57510.0,0.27]
[1617523680104,0.10725655,57511.0,57510.0,0.27]
[1617523680303,2.90795655,57511.0,57510.0,0.27]
[1617523680503,3.90795655,57511.0,57494.0,0.27]
[1617523680904,3.90795655,57511.0,57474.0,1.0]
[1617523681103,3.8007,57511.0,57499.0,0.10725655]
[1617523681304,4.36873536,57511.0,57499.0,0.10725655]
[1617523681503,4.36873536,57511.0,57500.0,0.27]
[1617523681704,1.0,57502.0,57500.0,0.27]
[1617523681905,1.0,57501.0,57500.0,0.27]
[1617523682105,1.0,57501.0,57476.0,0.27]
[1617523682404,1.0,57501.0,57474.0,0.27]
[1617523682806,1.0,57501.0,57477.0,0.27]
[1617523683005,1.0,57501.0,57474.0,0.27]
[1617523683205,0.10419,57502.0,57493.0,0.10725655]
[1617523683406,1.0,57503.0,57493.0,0.10725655]
[1617523683607,1.0,57508.0,57494.0,0.01]
[1617523683805,0.56802319,57512.0,57494.0,0.01]
[1617523683806,0.56802319,57512.0,57506.0,3.3366]
[1617523684006,0.56800592,57515.0,57506.0,3.50195]
[1617523684206,0.56800592,57515.0,57507.0,0.27]
[1617523684408,1.4558,57517.0,57507.0,0.27]
[1617523684607,1.0,57517.0,57507.0,0.27]
[1617523684809,1.56800041,57517.0,57507.0,0.27]
[1617523685008,0.56800041,57517.0,57507.0,0.27]
[1617523685208,0.56800041,57517.0,57512.0,0.10725655]
[1617523685610,1.0,57518.0,57513.0,0.27]
[1617523686110,1.56799642,57519.0,57513.0,0.27]
[1617523687112,0.10725655,57514.0,57513.0,0.27]
[1617523690619,0.56826831,57519.0,57513.0,0.27]
[1617523691019,1.0,57524.0,57513.0,0.27]
[1617523691020,0.56826698,57520.0,57518.0,2.5241]
[1617523691218,0.56826698,57520.0,57519.0,0.10725655]
[1617523691419,0.56826517,57521.0,57519.0,0.37725655]
[1617523691819,1.04246804,57522.0,57519.0,0.37725655]
[1617523692620,0.56954664,57520.0,57519.0,0.37725655]
[1617523701933,0.56920724,57521.0,57519.0,0.37725655]
[1617523705237,1.04373262,57522.0,57519.0,0.37725655]
[1617523705637,0.4742,57522.0,57519.0,0.37725655]
[1617523708540,1.04330522,57522.0,57519.0,0.37725655]
[1617523709540,0.56911516,57521.0,57519.0,0.37725655]
[1617523709941,0.56911981,57520.0,57519.0,0.37725655]
[1617523712047,0.56912063,57521.0,57519.0,0.37725655]
[1617523712247,0.13962,57520.0,57519.0,0.27]
[1617523712447,0.70875048,57520.0,57519.0,0.27]
[1617523712646,1.70875048,57520.0,57517.0,0.27]
[1617523712847,2.9509,57518.0,57517.0,0.27]
[1617523713045,2.9509,57518.0,57498.0,0.01]
[1617523713246,4.51976498,57518.0,57517.0,0.27]
[1617523713546,3.51976498,57518.0,57499.0,0.01]
[1617523713745,3.51976498,57518.0,57492.0,3.4564]
[1617523713746,4.51976498,57518.0,57492.0,3.4564]
[1617523713945,4.51976498,57518.0,57517.0,0.27]
[1617523714146,4.51976498,57518.0,57493.0,0.01]
[1617523714346,4.51976498,57518.0,57492.0,3.4564]
[1617523714546,0.56864921,57513.0,57495.0,0.27]
[1617523714745,0.56864921,57513.0,57493.0,0.27]
[1617523714947,1.0,57511.0,57493.0,0.27]
[1617523715448,1.0,57511.0,57503.0,0.10725655]
[1617523715945,1.0,57511.0,57504.0,0.27]
[1617523716846,0.56864921,57513.0,57504.0,0.27]
[1617523716847,1.56864921,57513.0,57504.0,0.27]
[1617523717046,0.56864921,57513.0,57504.0,0.27]
[1617523717449,0.10725655,57505.0,57504.0,0.27]
[1617523719549,0.56890698,57516.0,57504.0,0.27]
[1617523719751,0.56903263,57517.0,57504.0,0.40331]
[1617523721553,0.56903263,57517.0,57516.0,0.10725655]
[1617523721953,0.56903263,57517.0,57516.0,0.37725655]
[1617523722754,0.56903263,57517.0,57516.0,4.08005655]
[1617523723554,0.67628918,57517.0,57516.0,4.08005655]
[1617523723755,0.10725655,57517.0,57516.0,4.08005655]
[1617523724857,0.10725655,57517.0,57516.0,0.37725655]
[1617523725857,0.10725655,57517.0,57516.0,3.21785655]
[1617523726158,0.67629712,57517.0,57516.0,3.21785655]
[1617523727058,0.10725655,57517.0,57516.0,3.21785655]
[1617523728061,0.67604013,57517.0,57516.0,3.21785655]
[1617523733462,0.56878358,57517.0,57516.0,3.21785655]
[1617523733863,0.56861408,57518.0,57516.0,3.21785655]
[1617523734264,0.56878729,57520.0,57516.0,3.21785655]
[1617523735964,0.56878729,57520.0,57516.0,0.37725655]
[1617523737466,0.56884841,57521.0,57516.0,0.37725655]
[1617523738266,0.56873184,57520.0,57516.0,0.37725655]
[1617523740069,1.56873184,57520.0,57516.0,0.37725655]
[1617523740970,1.0,57519.0,57516.0,0.37725655]
[1617523741369,1.0,57518.0,57516.0,0.37725655]
[1617523743377,2.5,57517.0,57516.0,0.27]
[1617523743574,6.01915655,57517.0,57516.0,0.1329]
[1617523743774,11.01915655,57517.0,57491.0,0.27]
[1617523743975,8.93394687,57517.0,57516.0,0.01]
[1617523744376,8.93394687,57517.0,57492.0,0.27]
[1617523744377,2.19056119,57500.0,57492.0,0.27]
[1617523744575,0.2,57499.0,57492.0,0.27]
[1617523744776,0.50600753,57490.0,57483.0,0.10725655]
[1617523744976,0.50600753,57490.0,57485.0,0.27]
[1617523745375,0.5058861,57489.0,57484.0,0.01]
[1617523745577,0.5058861,57489.0,57486.0,0.27]
[1617523745975,0.5058861,57489.0,57484.0,0.27]
[1617523746177,0.5058861,57489.0,57487.0,0.27]
[1617523746576,0.5058861,57489.0,57484.0,0.27]
[1617523746976,0.5058861,57489.0,57488.0,0.27]
[1617523747178,0.5058861,57489.0,57484.0,0.27]
[1617523747577,0.5058861,57489.0,57488.0,0.27]
[1617523747778,0.5058861,57489.0,57484.0,0.27]
[1617523748179,0.5058861,57489.0,57483.0,0.10725655]
[1617523748180,0.10725655,57490.0,57488.0,0.27]
[1617523748380,0.10725655,57490.0,57484.0,0.27]
[1617523748577,0.5054283,57489.0,57484.0,0.27]
[1617523748778,0.5054283,57489.0,57483.0,0.10725655]
[1617523748978,0.50524622,57488.0,57483.0,0.10725655]
[1617523749178,0.50524622,57488.0,57484.0,0.27]
[1617523750184,0.10725655,57490.0,57484.0,0.27]
[1617523750185,0.50496805,57489.0,57484.0,0.27]
[1617523753083,0.10725655,57490.0,57484.0,0.27]
[1617523753688,0.10725655,57490.0,57489.0,0.10725655]
[1617523754085,0.10725655,57490.0,57489.0,0.11725655]
[1617523758891,0.26130655,57490.0,57489.0,0.11725655]
[1617523762398,1.26130655,57490.0,57489.0,0.11725655]
[1617523765610,0.26130655,57490.0,57489.0,0.11725655]
[1617523771111,4.94320655,57490.0,57489.0,0.01]
[1617523771512,4.94320655,57490.0,57454.0,0.27]
[1617523771713,1.24579202,57490.0,57467.0,0.10725655]
[1617523771916,1.24579202,57490.0,57489.0,0.01]
[1617523772114,1.0,57488.0,57467.0,0.10725655]
[1617523772313,1.0,57488.0,57480.0,2.9073]
[1617523772513,3.37145,57490.0,57480.0,2.9073]
[1617523772514,4.87500737,57490.0,57480.0,2.9073]
[1617523772713,4.87500737,57490.0,57481.0,0.27]
[1617523773115,0.0917431,57489.0,57481.0,0.27]
[1617523773715,0.0917431,57489.0,57484.0,0.10725655]
[1617523774115,0.0917431,57489.0,57485.0,0.27]
[1617523775720,0.10725655,57486.0,57485.0,0.27]
[1617523778225,1.10725655,57486.0,57485.0,0.27]
[1617523778625,0.10725655,57486.0,57485.0,0.27]
[1617523779426,0.0917431,57489.0,57485.0,0.27]
[1617523779628,0.0917431,57489.0,57485.0,3.92198]
[1617523780027,0.10725655,57495.0,57485.0,3.92198]
[1617523781927,0.10725655,57495.0,57494.0,0.10725655]
[1617523782327,0.10725655,57495.0,57494.0,0.37725655]
[1617523785029,1.10725655,57495.0,57494.0,0.37725655]
[1617523785429,3.82995655,57495.0,57494.0,0.37725655]
[1617523786032,3.92169421,57495.0,57494.0,0.37725655]
[1617523786433,3.97349421,57495.0,57494.0,0.27]
[1617523786633,3.92169421,57495.0,57494.0,0.27]
[1617523786835,3.92169421,57495.0,57476.0,0.27]
[1617523787034,3.82995655,57495.0,57476.0,0.27]
[1617523787435,2.82995655,57495.0,57477.0,0.0523]
[1617523787836,2.7227,57495.0,57488.0,0.10725655]
[1617523788036,3.22765729,57495.0,57488.0,0.10725655]
[1617523788236,3.22765729,57495.0,57489.0,0.27]
[1617523788437,1.0,57493.0,57489.0,0.27]
[1617523788837,1.0,57490.0,57489.0,0.27]
[1617523789036,1.15143,57490.0,57489.0,0.27]
[1617523789839,1.25868655,57490.0,57489.0,0.27]
[1617523793345,0.25868655,57490.0,57489.0,0.27]
[1617523793541,0.25868655,57490.0,57489.0,0.3214]
[1617523793742,0.10725655,57490.0,57489.0,0.27]
[1617523793943,1.10725655,57490.0,57489.0,0.27]
[1617523796049,1.61368401,57490.0,57489.0,0.27]
[1617523796249,1.61368401,57490.0,57489.0,0.2224]
[1617523796450,1.61368401,57490.0,57489.0,0.1994]
[1617523796650,1.61368401,57490.0,57476.0,0.27]
[1617523797351,0.50685949,57489.0,57476.0,0.27]
[1617523797951,0.10725655,57477.0,57476.0,0.37725655]
[1617523798152,0.27410655,57477.0,57476.0,0.37725655]
[1617523798852,2.92440655,57477.0,57476.0,0.37725655]
[1617523799452,3.01614896,57477.0,57476.0,0.37725655]
[1617523804658,2.92440655,57477.0,57476.0,0.37725655]
[1617523814370,3.92440655,57477.0,57476.0,0.27]
[1617523814771,3.92440655,57477.0,57452.0,0.27]
[1617523814972,4.43356128,57477.0,57452.0,0.27]
[1617523815170,4.43356128,57477.0,57476.0,0.27]
[1617523815372,0.6008221,57476.0,57447.0,0.27]
[1617523815571,0.6008221,57476.0,57446.0,1.0]
[1617523815771,0.6008221,57476.0,57445.0,1.0]
[1617523815772,0.50886267,57475.0,57445.0,1.0]
[1617523815973,0.50886267,57475.0,57465.0,0.10725655]
[1617523816371,0.50889509,57474.0,57465.0,0.10725655]
[1617523816578,0.50889509,57474.0,57466.0,0.27]
[1617523816772,0.50901109,57475.0,57466.0,0.27]
[1617523816980,1.50901109,57475.0,57466.0,0.27]
[1617523817573,0.50889698,57473.0,57466.0,0.27]
[1617523817975,0.10725655,57467.0,57466.0,0.27]
[1617523834997,3.16811655,57467.0,57466.0,0.27]
[1617523837199,0.27061655,57467.0,57466.0,0.27]
[1617523850221,0.16336,57467.0,57466.0,0.27]
[1617523850421,2.9509,57468.0,57466.0,0.27]
[1617523850629,2.9509,57468.0,57466.0,0.41981]
[1617523852023,2.9509,57468.0,57466.0,0.27]
[1617523852224,3.05815655,57468.0,57466.0,0.27]
[1617523867139,2.9509,57468.0,57466.0,0.27]
[1617523868142,0.50556322,57477.0,57466.0,0.27]
[1617523868341,0.5055531,57476.0,57472.0,3.6618]
[1617523868741,0.5055921,57478.0,57473.0,0.01]
[1617523869141,0.50564878,57479.0,57473.0,0.01]
[1617523870344,0.50564878,57479.0,57478.0,0.10725655]
[1617523870543,0.50564878,57479.0,57478.0,0.24355655]
[1617523870746,0.50564878,57479.0,57478.0,0.51355655]
[1617523887356,0.50564878,57479.0,57478.0,0.37725655]
[1617523896062,3.62124878,57479.0,57478.0,0.37725655]
[1617523896661,3.7130081,57479.0,57478.0,0.37725655]
[1617523908776,0.5974081,57479.0,57478.0,0.37725655]
[1617523908977,0.5974081,57479.0,57478.0,3.99850655]
[1617523909579,0.50564878,57479.0,57478.0,3.99850655]
[1617523909879,0.50774372,57480.0,57478.0,3.99850655]
[1617523910279,0.50774372,57480.0,57478.0,0.52700655]
[1617523910479,2.9537,57480.0,57478.0,0.52700655]
[1617523911078,2.9537,57480.0,57478.0,0.37725655]
[1617523911279,0.09175634,57479.0,57478.0,0.37725655]
[1617523913483,0.59931226,57479.0,57478.0,0.37725655]
[1617523914282,3.44705592,57479.0,57478.0,0.37725655]
[1617523914682,3.53881953,57479.0,57478.0,0.37725655]
[1617523921490,4.10606912,57479.0,57478.0,0.37725655]
[1617523922589,5.10606912,57479.0,57478.0,0.37725655]
[1617523922790,5.10606912,57479.0,57478.0,0.27]
[1617523923189,5.10606912,57479.0,57455.0,0.10725655]
[1617523923590,0.50525126,57464.0,57456.0,0.27]
[1617523923790,0.61965126,57464.0,57456.0,0.27]
[1617523924192,0.1144,57464.0,57456.0,0.27]
[1617523924897,0.10725655,57457.0,57456.0,0.27]
[1617523929800,0.1144,57464.0,57456.0,0.27]
[1617523929999,0.50361716,57466.0,57456.0,0.27]
[1617523930401,0.50316598,57467.0,57456.0,0.27]
[1617523930999,0.50316598,57467.0,57466.0,0.10725655]
[1617523931199,3.30926598,57467.0,57466.0,0.10725655]
[1617523931399,3.30926598,57467.0,57466.0,0.11725655]
[1617523931999,2.89789632,57467.0,57466.0,0.11725655]
[1617523932200,2.89789632,57467.0,57466.0,0.01]
[1617523932401,4.40078651,57467.0,57466.0,0.01]
[1617523932599,4.40078651,57467.0,57444.0,0.27]
[1617523932799,4.51749651,57467.0,57444.0,0.27]
[1617523933001,4.51749651,57467.0,57455.0,0.10725655]
[1617523933399,4.51749651,57467.0,57456.0,0.0528]
[1617523933400,0.5027125,57465.0,57456.0,0.0528]
[1617523933599,0.5027125,57465.0,57456.0,0.0628]
[1617523934000,0.5027125,57465.0,57456.0,0.01]
[1617523934200,0.59469241,57466.0,57456.0,0.01]
[1617523934401,1.59469241,57466.0,57456.0,0.01]
[1617523934802,1.09180018,57466.0,57456.0,0.01]
[1617523935001,0.10725655,57457.0,57456.0,0.01]
[1617523944809,0.15895655,57457.0,57456.0,0.01]
[1617523945409,0.10725655,57457.0,57456.0,0.01]
[1617523949115,3.48080018,57466.0,57462.0,3.5438]
[1617523949516,0.09179061,57465.0,57463.0,0.27]
[1617523950517,3.389,57466.0,57463.0,0.27]
[1617523951118,3.389,57466.0,57465.0,0.10725655]
[1617523951517,3.389,57466.0,57465.0,0.37725655]
[1617523969243,3.389,57466.0,57465.0,0.27]
[1617523969643,3.389,57466.0,57460.0,0.01]
[1617523970044,3.389,57466.0,57465.0,0.27]
[1617523970245,0.09178879,57465.0,57460.0,0.27]
[1617523970544,0.09178879,57465.0,57459.0,0.10725655]
[1617523970944,0.09178879,57465.0,57461.0,0.27]
[1617523971145,0.09178879,57465.0,57460.0,0.27]
[1617523971345,0.10725655,57461.0,57459.0,0.10725655]
[1617523971745,0.10725655,57461.0,57460.0,0.27]
[1617523972445,0.61147201,57461.0,57460.0,0.27]
[1617523976548,4.06107201,57461.0,57460.0,0.27]
[1617523977150,4.15286083,57461.0,57460.0,0.27]
[1617523977550,4.04560428,57461.0,57460.0,0.27]
[1617523977850,3.54138882,57461.0,57460.0,0.27]
[1617523978752,4.04568408,57461.0,57460.0,0.27]
[1617523979154,3.54138882,57461.0,57460.0,0.27]
[1617523979354,3.64864537,57461.0,57460.0,0.27]
[1617523980356,4.15294491,57461.0,57460.0,0.27]
[1617523988070,5.65294491,57461.0,57460.0,0.27]
[1617523988266,5.65294491,57461.0,57431.0,0.20399959]
[1617523988267,11.65294491,57461.0,57431.0,0.20399959]
[1617523988466,0.2,57460.0,57431.0,0.20399959]
[1617523988667,0.56358239,57449.0,57443.0,0.27]
[1617523988866,3.0185,57444.0,57432.0,0.01]
[1617523989075,1.5,57443.0,57425.0,0.27]
[1617523989283,1.0,57433.0,57425.0,0.27]
[1617523989475,3.12575655,57426.0,57417.0,0.2925]
[1617523989666,3.12575655,57426.0,57417.0,0.1082]
[1617523989667,1.7,57425.0,57417.0,0.1082]
[1617523989866,1.7,57425.0,57419.0,0.27]
[1617523990070,3.6457,57420.0,57419.0,0.27]
[1617523990266,5.1457,57420.0,57417.0,0.1082]
[1617523990468,2.00126084,57420.0,57419.0,0.27]
[1617523990868,5.1125,57420.0,57418.0,0.01]
[1617523991074,5.1125,57420.0,57419.0,0.27]
[1617523991469,1.10725655,57420.0,57418.0,0.2173]
[1617523991669,1.60843201,57420.0,57419.0,0.27]
[1617523992078,1.56103522,57419.0,57418.0,0.27]
[1617523992468,1.56103522,57419.0,57417.0,0.1082]
[1617523992680,0.50085962,57419.0,57418.0,0.27]
[1617523992879,0.50085962,57419.0,57418.0,3.6155]
[1617523993076,0.50085962,57419.0,57418.0,0.27]
[1617523993484,0.70156446,57430.0,57418.0,0.37725655]
[1617523993485,0.50180823,57421.0,57418.0,0.37725655]
[1617523994079,0.09185105,57433.0,57418.0,0.37725655]
[1617523994279,1.0,57432.0,57430.0,3.5561]
[1617523994675,1.0,57432.0,57431.0,0.27]
[1617523995077,1.0,57433.0,57431.0,0.27]
[1617523995273,1.0,57432.0,57431.0,0.27]
[1617523995471,1.10725655,57432.0,57431.0,0.27]
[1617523995672,0.10725655,57432.0,57431.0,0.27]
[1617523999278,3.64455655,57432.0,57431.0,0.27]
[1617523999478,3.64455655,57432.0,57430.0,0.27]
[1617523999878,3.64455655,57432.0,57431.0,0.27]
[1617524000078,3.64455655,57432.0,57430.0,0.27]
[1617524000477,3.78135655,57432.0,57431.0,0.27]
[1617524000677,3.78135655,57432.0,57429.0,0.10725655]
[1617524000879,3.78135655,57432.0,57430.0,0.27]
[1617524001278,0.09184967,57431.0,57430.0,0.27]
[1617524005085,3.64455655,57432.0,57430.0,0.27]
[1617524006387,0.10725655,57432.0,57430.0,0.27]
[1617524006587,0.10725655,57432.0,57428.0,0.10788]
[1617524006998,0.10725655,57432.0,57431.0,0.27]
[1617524007187,0.10725655,57432.0,57429.0,0.27]
[1617524009892,2.6684,57430.0,57429.0,0.27]
[1617524011394,2.6684,57430.0,57418.0,0.28]
[1617524011594,2.6684,57430.0,57427.0,0.10725655]
[1617524011794,2.6684,57430.0,57429.0,0.27]
[1617524011993,2.6684,57430.0,57428.0,0.27]
[1617524012394,2.6684,57430.0,57429.0,0.28]
[1617524012593,2.6684,57430.0,57427.0,0.10725655]
[1617524012793,2.6684,57430.0,57428.0,0.27]
[1617524013694,0.10725655,57429.0,57428.0,0.27]
[1617524025607,0.27287655,57429.0,57428.0,0.27]
[1617524029312,0.10725655,57429.0,57428.0,0.27]
[1617524030717,0.49845254,57442.0,57428.0,0.38045]
[1617524030916,0.49845254,57442.0,57440.0,2.7859]
[1617524031117,0.49845254,57442.0,57440.0,2.925]
[1617524031318,1.0,57452.0,57440.0,2.925]
[1617524031319,0.49862666,57444.0,57441.0,0.27]
[1617524031720,0.49901054,57449.0,57443.0,3.68935655]
[1617524032119,0.49933289,57453.0,57444.0,0.27]
[1617524032621,1.99526243,57455.0,57444.0,0.27]
[1617524033020,1.4957,57455.0,57444.0,0.27]
[1617524033820,0.10725655,57445.0,57444.0,0.27]
[1617524040932,1.10725655,57445.0,57444.0,0.27]
[1617524041538,0.10725655,57445.0,57444.0,0.27]
[1617524043842,0.60916177,57445.0,57444.0,0.27]
[1617524045041,1.60916177,57445.0,57444.0,0.27]
[1617524045441,0.60916177,57445.0,57444.0,0.27]
[1617524046042,1.60916177,57445.0,57444.0,0.27]